[Event "Titled Tuesday Blitz August 09 Early 2022"]
[White "Zhukov, Maksim"]
[Black "Agasarov, Benik"]
[WhiteFideId "34181790"]
[BlackFideId "13314823"]
[WhiteElo "1978"]
[BlackElo "2152"]
[Result "1/2-1/2"]
[Round "09"]
[TimeControl "180+1"]
[Date "2022.08.09"]
[WhiteClock "0:00:06"]
[BlackClock "0:01:51"]

1. d4 {[%clk 0:03:00]}  d5 {[%clk 0:02:58]} 2. c4 {[%clk 0:03:01]}  c6 {[%clk 0:02:56]} 3. cxd5 {[%clk 0:02:54]}  cxd5 {[%clk 0:02:56]} 4. Bf4 {[%clk 0:02:55]}  Nf6 {[%clk 0:02:55]} 5. e3 {[%clk 0:02:55]}  Nc6 {[%clk 0:02:56]} 6. Nc3 {[%clk 0:02:56]}  Bg4 {[%clk 0:02:54]} 7. Qb3 {[%clk 0:02:55]}  Na5 {[%clk 0:02:54]} 8. Bb5+ {[%clk 0:02:50]}  Bd7 {[%clk 0:02:54]} 9. Qa4 {[%clk 0:02:47]}  Nc6 {[%clk 0:02:52]} 10. Qb3 {[%clk 0:02:15]}  e6 {[%clk 0:02:50]} 11. Nf3 {[%clk 0:02:14]}  Na5 {[%clk 0:02:48]} 12. Qa4 {[%clk 0:02:09]}  Nc6 {[%clk 0:02:48]} 13. Qb3 {[%clk 0:02:08]}  a6 {[%clk 0:02:46]} 14. Bxc6 {[%clk 0:02:08]}  Bxc6 {[%clk 0:02:47]} 15. O-O {[%clk 0:02:09]}  Bd6 {[%clk 0:02:43]} 16. Bxd6 {[%clk 0:02:09]}  Qxd6 {[%clk 0:02:44]} 17. Rac1 {[%clk 0:02:08]}  O-O {[%clk 0:02:44]} 18. Na4 {[%clk 0:02:08]}  Bb5 {[%clk 0:02:43]} 19. Rfd1 {[%clk 0:02:05]}  Rfc8 {[%clk 0:02:42]} 20. Ne5 {[%clk 0:01:39]}  Bxa4 {[%clk 0:02:32]} 21. Qxa4 {[%clk 0:01:38]}  b5 {[%clk 0:02:33]} 22. Qa5 {[%clk 0:01:25]}  Nd7 {[%clk 0:02:28]} 23. Nd3 {[%clk 0:01:17]}  Qb6 {[%clk 0:02:20]} 24. Qxb6 {[%clk 0:01:05]}  Nxb6 {[%clk 0:02:21]} 25. b3 {[%clk 0:01:05]}  Nd7 {[%clk 0:02:19]} 26. Kf1 {[%clk 0:00:50]}  a5 {[%clk 0:02:18]} 27. Ke2 {[%clk 0:00:49]}  Kf8 {[%clk 0:02:19]} 28. Kd2 {[%clk 0:00:49]}  Ke7 {[%clk 0:02:19]} 29. a3 {[%clk 0:00:42]}  Kd6 {[%clk 0:02:18]} 30. Rxc8 {[%clk 0:00:34]}  Rxc8 {[%clk 0:02:17]} 31. Rc1 {[%clk 0:00:35]}  Rxc1 {[%clk 0:02:17]} 32. Kxc1 {[%clk 0:00:36]}  f6 {[%clk 0:02:17]} 33. Kd2 {[%clk 0:00:32]}  g5 {[%clk 0:02:17]} 34. b4 {[%clk 0:00:30]}  Nb6 {[%clk 0:02:15]} 35. bxa5 {[%clk 0:00:28]}  Nc4+ {[%clk 0:02:14]} 36. Kc3 {[%clk 0:00:29]}  Nxa5 {[%clk 0:02:15]} 37. Kb4 {[%clk 0:00:20]}  Nc4 {[%clk 0:02:15]} 38. Nc5 {[%clk 0:00:19]}  h5 {[%clk 0:02:14]} 39. Nb3 {[%clk 0:00:13]}  e5 {[%clk 0:02:09]} 40. Na1 {[%clk 0:00:11]}  e4 {[%clk 0:02:05]} 41. Nc2 {[%clk 0:00:11]}  Kc6 {[%clk 0:02:05]} 42. Kc3 {[%clk 0:00:07]}  f5 {[%clk 0:02:05]} 43. Nb4+ {[%clk 0:00:07]}  Kd6 {[%clk 0:02:06]} 44. Nc2 {[%clk 0:00:07]}  f4 {[%clk 0:02:06]} 45. Kb4 {[%clk 0:00:07]}  Kc6 {[%clk 0:02:05]} 46. Kc3 {[%clk 0:00:08]}  f3 {[%clk 0:02:03]} 47. gxf3 {[%clk 0:00:07]}  exf3 {[%clk 0:02:04]} 48. Kb4 {[%clk 0:00:07]}  g4 {[%clk 0:02:04]} 49. Kc3 {[%clk 0:00:07]}  Nd6 {[%clk 0:02:05]} 50. Nb4+ {[%clk 0:00:04]}  Kd7 {[%clk 0:02:04]} 51. Kd2 {[%clk 0:00:03]}  Ne4+ {[%clk 0:02:04]} 52. Ke1 {[%clk 0:00:04]}  Ke6 {[%clk 0:02:05]} 53. Nd3 {[%clk 0:00:05]}  h4 {[%clk 0:02:04]} 54. Nf4+ {[%clk 0:00:05]}  Kd6 {[%clk 0:02:05]} 55. Ng6 {[%clk 0:00:05]}  h3 {[%clk 0:02:04]} 56. Ne5 {[%clk 0:00:06]}  g3 {[%clk 0:02:04]} 57. fxg3 {[%clk 0:00:05]}  Nxg3 {[%clk 0:02:04]} 58. Nxf3 {[%clk 0:00:04]}  Ne4 {[%clk 0:02:04]} 59. Ke2 {[%clk 0:00:04]}  Nc3+ {[%clk 0:02:03]} 60. Kd3 {[%clk 0:00:04]}  Nb1 {[%clk 0:02:03]} 61. Ng5 {[%clk 0:00:03]}  Nxa3 {[%clk 0:02:03]} 62. Nxh3 {[%clk 0:00:04]}  b4 {[%clk 0:02:03]} 63. Nf4 {[%clk 0:00:03]}  Nb5 {[%clk 0:01:57]} 64. h4 {[%clk 0:00:03]}  b3 {[%clk 0:01:56]} 65. h5 {[%clk 0:00:03]}  b2 {[%clk 0:01:53]} 66. Kc2 {[%clk 0:00:03]}  Nc3 {[%clk 0:01:53]} 67. Kxb2 {[%clk 0:00:03]}  Nd1+ {[%clk 0:01:52]} 68. Kc2 {[%clk 0:00:03]}  Nxe3+ {[%clk 0:01:52]} 69. Kd3 {[%clk 0:00:03]}  Nf5 {[%clk 0:01:51]} 70. Ke2 {[%clk 0:00:03]}  Nxd4+ {[%clk 0:01:51]} 71. Kd3 {[%clk 0:00:03]}  Nf5 {[%clk 0:01:52]} 72. Nxd5 {[%clk 0:00:04]}  Kxd5 {[%clk 0:01:52]} 73. h6 {[%clk 0:00:05]}  Ne7 {[%clk 0:01:50]} 74. h7 {[%clk 0:00:06]}  Ng6 {[%clk 0:01:50]} 75. h8=Q {[%clk 0:00:06]}  Nxh8 {[%clk 0:01:51]} 1/2-1/2


[Site "https://www.chess.com"]

[Event "Titled Tuesday Blitz August 09 Early 2022"]
[White "Aaditya Dhingra"]
[Black "Vakhlamov, Igor L."]
[WhiteFideId "25678191"]
[BlackFideId "24126748"]
[WhiteElo "1849"]
[BlackElo "2401"]
[Result "1/2-1/2"]
[Round "10"]
[TimeControl "180+1"]
[Date "2022.08.09"]
[WhiteClock "0:00:17"]
[BlackClock "0:00:50"]

1. e4 {[%clk 0:03:00]}  c5 {[%clk 0:02:59]} 2. Nf3 {[%clk 0:03:00]}  Nc6 {[%clk 0:03:00]} 3. d4 {[%clk 0:02:59]}  cxd4 {[%clk 0:03:01]} 4. Nxd4 {[%clk 0:03:00]}  g6 {[%clk 0:03:01]} 5. c4 {[%clk 0:02:59]}  Nf6 {[%clk 0:03:01]} 6. Nc3 {[%clk 0:02:58]}  d6 {[%clk 0:03:01]} 7. Be2 {[%clk 0:02:55]}  Nxd4 {[%clk 0:03:02]} 8. Qxd4 {[%clk 0:02:55]}  Bg7 {[%clk 0:03:03]} 9. Be3 {[%clk 0:02:53]}  O-O {[%clk 0:03:03]} 10. Qd2 {[%clk 0:02:53]}  Be6 {[%clk 0:03:04]} 11. Rc1 {[%clk 0:02:52]}  Qa5 {[%clk 0:03:04]} 12. O-O {[%clk 0:02:48]}  Rfc8 {[%clk 0:03:05]} 13. b3 {[%clk 0:02:47]}  a6 {[%clk 0:03:05]} 14. f3 {[%clk 0:02:18]}  b5 {[%clk 0:03:04]} 15. Nd5 {[%clk 0:02:08]}  Qxd2 {[%clk 0:03:03]} 16. Bxd2 {[%clk 0:02:07]}  Nxd5 {[%clk 0:03:03]} 17. cxd5 {[%clk 0:02:06]}  Bd4+ {[%clk 0:03:03]} 18. Kh1 {[%clk 0:02:05]}  Bd7 {[%clk 0:03:03]} 19. Rfd1 {[%clk 0:01:55]}  Bb2 {[%clk 0:03:00]} 20. Rb1 {[%clk 0:01:50]}  Be5 {[%clk 0:02:57]} 21. f4 {[%clk 0:01:47]}  Bd4 {[%clk 0:02:44]} 22. Bd3 {[%clk 0:01:36]}  h5 {[%clk 0:02:36]} 23. h3 {[%clk 0:01:33]}  a5 {[%clk 0:02:28]} 24. Kh2 {[%clk 0:01:23]}  b4 {[%clk 0:02:26]} 25. Kg3 {[%clk 0:01:13]}  Kg7 {[%clk 0:02:19]} 26. Kf3 {[%clk 0:01:12]}  e5 {[%clk 0:02:17]} 27. Rdc1 {[%clk 0:01:01]}  f5 {[%clk 0:02:13]} 28. fxe5 {[%clk 0:00:52]}  fxe4+ {[%clk 0:02:10]} 29. Bxe4 {[%clk 0:00:49]}  Bxe5 {[%clk 0:02:06]} 30. Ke2 {[%clk 0:00:43]}  Bb5+ {[%clk 0:02:02]} 31. Bd3 {[%clk 0:00:43]}  Bd7 {[%clk 0:01:59]} 32. Rxc8 {[%clk 0:00:36]}  Rxc8 {[%clk 0:02:00]} 33. Rc1 {[%clk 0:00:35]}  Kf6 {[%clk 0:01:42]} 34. Rxc8 {[%clk 0:00:32]}  Bxc8 {[%clk 0:01:43]} 35. Be3 {[%clk 0:00:31]}  Bd7 {[%clk 0:01:40]} 36. Bc2 {[%clk 0:00:28]}  g5 {[%clk 0:01:38]} 37. Bb6 {[%clk 0:00:28]}  g4 {[%clk 0:01:30]} 38. hxg4 {[%clk 0:00:27]}  Bxg4+ {[%clk 0:01:30]} 39. Kd2 {[%clk 0:00:26]}  Bc3+ {[%clk 0:01:28]} 40. Kc1 {[%clk 0:00:25]}  Ke5 {[%clk 0:01:29]} 41. Bxa5 {[%clk 0:00:23]}  Kxd5 {[%clk 0:01:29]} 42. Bd8 {[%clk 0:00:24]}  Kc5 {[%clk 0:01:21]} 43. Bg5 {[%clk 0:00:23]}  d5 {[%clk 0:01:20]} 44. Bd1 {[%clk 0:00:23]}  Kd4 {[%clk 0:01:09]} 45. Bxg4 {[%clk 0:00:22]}  hxg4 {[%clk 0:01:10]} 46. Kc2 {[%clk 0:00:20]}  Ke4 {[%clk 0:01:10]} 47. a4 {[%clk 0:00:20]}  d4 {[%clk 0:01:06]} 48. a5 {[%clk 0:00:19]}  d3+ {[%clk 0:01:07]} 49. Kd1 {[%clk 0:00:19]}  Kd5 {[%clk 0:01:07]} 50. Be3 {[%clk 0:00:17]}  Kc6 {[%clk 0:00:53]} 51. a6 {[%clk 0:00:17]}  Kc7 {[%clk 0:00:53]} 52. a7 {[%clk 0:00:16]}  Kb7 {[%clk 0:00:53]} 53. Kc1 {[%clk 0:00:17]}  Ka8 {[%clk 0:00:51]} 54. Kd1 {[%clk 0:00:17]}  Kb7 {[%clk 0:00:51]} 55. Kc1 {[%clk 0:00:17]}  Be1 {[%clk 0:00:50]} 56. Kd1 {[%clk 0:00:17]}  Bc3 {[%clk 0:00:50]} 1/2-1/2


[Site "https://www.chess.com"]

[Event "Titled Tuesday Blitz August 09 Early 2022"]
[White "Averjanov, Alexey"]
[Black "Ferreira, Vitor Hugo Vieira"]
[WhiteFideId "14109867"]
[BlackFideId "2119765"]
[WhiteElo "2629"]
[BlackElo "2168"]
[Result "1/2-1/2"]
[Round "10"]
[TimeControl "180+1"]
[Date "2022.08.09"]
[WhiteClock "0:01:32"]
[BlackClock "0:00:47"]

1. d4 {[%clk 0:02:59]}  d5 {[%clk 0:02:59]} 2. c4 {[%clk 0:02:59]}  c6 {[%clk 0:02:59]} 3. e3 {[%clk 0:02:59]}  Nf6 {[%clk 0:03:00]} 4. Bd3 {[%clk 0:02:59]}  dxc4 {[%clk 0:02:59]} 5. Bxc4 {[%clk 0:02:59]}  e6 {[%clk 0:02:57]} 6. Nf3 {[%clk 0:02:59]}  c5 {[%clk 0:02:57]} 7. O-O {[%clk 0:02:59]}  Nc6 {[%clk 0:02:56]} 8. Qe2 {[%clk 0:02:58]}  a6 {[%clk 0:02:55]} 9. dxc5 {[%clk 0:02:57]}  Bxc5 {[%clk 0:02:54]} 10. a3 {[%clk 0:02:58]}  O-O {[%clk 0:02:53]} 11. b4 {[%clk 0:02:58]}  Be7 {[%clk 0:02:52]} 12. Bb2 {[%clk 0:02:59]}  b5 {[%clk 0:02:52]} 13. Bb3 {[%clk 0:02:58]}  Bb7 {[%clk 0:02:52]} 14. Nbd2 {[%clk 0:02:57]}  Rc8 {[%clk 0:02:51]} 15. Rfd1 {[%clk 0:02:58]}  Qb6 {[%clk 0:02:50]} 16. Rac1 {[%clk 0:02:58]}  Rfd8 {[%clk 0:02:50]} 17. Nd4 {[%clk 0:02:58]}  h6 {[%clk 0:02:45]} 18. N2f3 {[%clk 0:02:58]}  Ne4 {[%clk 0:02:37]} 19. Nxc6 {[%clk 0:02:57]}  Bxc6 {[%clk 0:02:36]} 20. Nd4 {[%clk 0:02:56]}  Ba8 {[%clk 0:02:27]} 21. f3 {[%clk 0:02:50]}  Nd6 {[%clk 0:02:20]} 22. Rxc8 {[%clk 0:02:46]}  Rxc8 {[%clk 0:02:19]} 23. Nxe6 {[%clk 0:02:46]}  fxe6 {[%clk 0:02:18]} 24. Bxe6+ {[%clk 0:02:47]}  Kf8 {[%clk 0:02:15]} 25. Rxd6 {[%clk 0:02:44]}  Bxd6 {[%clk 0:02:11]} 26. Bxc8 {[%clk 0:02:44]}  Qc7 {[%clk 0:02:02]} 27. Be6 {[%clk 0:02:43]}  Bxh2+ {[%clk 0:02:01]} 28. Kf1 {[%clk 0:02:43]}  Be5 {[%clk 0:02:00]} 29. Bxe5 {[%clk 0:02:27]}  Qxe5 {[%clk 0:02:01]} 30. Bd7 {[%clk 0:02:10]}  Qa1+ {[%clk 0:01:58]} 31. Kf2 {[%clk 0:02:10]}  Qxa3 {[%clk 0:01:58]} 32. Qd2 {[%clk 0:02:11]}  Ke7 {[%clk 0:01:38]} 33. Bf5 {[%clk 0:02:04]}  Bc6 {[%clk 0:01:37]} 34. Qc2 {[%clk 0:01:59]}  Be8 {[%clk 0:01:13]} 35. Qc5+ {[%clk 0:01:54]}  Kf7 {[%clk 0:01:12]} 36. Qd5+ {[%clk 0:01:54]}  Ke7 {[%clk 0:01:10]} 37. Qe5+ {[%clk 0:01:49]}  Kf8 {[%clk 0:01:09]} 38. Qd6+ {[%clk 0:01:50]}  Kg8 {[%clk 0:01:09]} 39. Be6+ {[%clk 0:01:50]}  Kh7 {[%clk 0:01:07]} 40. Qf8 {[%clk 0:01:47]}  Qb2+ {[%clk 0:01:02]} 41. Kg1 {[%clk 0:01:47]}  Qa1+ {[%clk 0:00:58]} 42. Kf2 {[%clk 0:01:45]}  Qb2+ {[%clk 0:00:58]} 43. Ke1 {[%clk 0:01:40]}  Qc3+ {[%clk 0:00:56]} 44. Ke2 {[%clk 0:01:37]}  Qc2+ {[%clk 0:00:54]} 45. Kf1 {[%clk 0:01:34]}  Qb1+ {[%clk 0:00:47]} 46. Kf2 {[%clk 0:01:32]}  Qb2+ {[%clk 0:00:47]} 1/2-1/2


[Site "https://www.chess.com"]

[Event "Titled Tuesday Blitz August 09 Early 2022"]
[White "Avinash, Ramesh"]
[Black "Ibarra Jerez, Jose Carlos"]
[WhiteFideId "45018340"]
[BlackFideId "2226332"]
[WhiteElo "1901"]
[BlackElo "2628"]
[Result "1/2-1/2"]
[Round "10"]
[TimeControl "180+1"]
[Date "2022.08.09"]
[WhiteClock "0:00:03"]
[BlackClock "0:00:03"]

1. e4 {[%clk 0:02:57]}  c5 {[%clk 0:03:00]} 2. Nf3 {[%clk 0:02:55]}  e6 {[%clk 0:02:59]} 3. d4 {[%clk 0:02:54]}  cxd4 {[%clk 0:03:00]} 4. Nxd4 {[%clk 0:02:55]}  Bc5 {[%clk 0:03:01]} 5. Nb3 {[%clk 0:02:54]}  Bb6 {[%clk 0:03:01]} 6. Nc3 {[%clk 0:02:54]}  Ne7 {[%clk 0:03:02]} 7. Qe2 {[%clk 0:02:55]}  O-O {[%clk 0:03:03]} 8. Be3 {[%clk 0:02:55]}  f5 {[%clk 0:03:03]} 9. O-O-O {[%clk 0:02:41]}  f4 {[%clk 0:03:03]} 10. Bxb6 {[%clk 0:02:39]}  Qxb6 {[%clk 0:03:04]} 11. f3 {[%clk 0:02:33]}  Nbc6 {[%clk 0:03:04]} 12. Qd2 {[%clk 0:02:30]}  Ng6 {[%clk 0:03:01]} 13. Kb1 {[%clk 0:02:30]}  a6 {[%clk 0:02:58]} 14. h4 {[%clk 0:02:27]}  Nge5 {[%clk 0:02:59]} 15. h5 {[%clk 0:02:26]}  h6 {[%clk 0:02:58]} 16. Rh4 {[%clk 0:02:22]}  Qe3 {[%clk 0:02:38]} 17. Qxe3 {[%clk 0:02:21]}  fxe3 {[%clk 0:02:39]} 18. Re1 {[%clk 0:02:22]}  b5 {[%clk 0:02:02]} 19. Rxe3 {[%clk 0:02:20]}  d6 {[%clk 0:02:03]} 20. Re1 {[%clk 0:02:19]}  Bb7 {[%clk 0:02:02]} 21. Rd1 {[%clk 0:02:19]}  Rad8 {[%clk 0:02:02]} 22. a3 {[%clk 0:02:16]}  Nf7 {[%clk 0:01:26]} 23. Rh1 {[%clk 0:02:16]}  Nce5 {[%clk 0:01:26]} 24. Be2 {[%clk 0:02:11]}  Rc8 {[%clk 0:01:26]} 25. Nd4 {[%clk 0:02:05]}  Rfe8 {[%clk 0:01:24]} 26. Rhe1 {[%clk 0:02:04]}  Kf8 {[%clk 0:01:13]} 27. Bf1 {[%clk 0:02:05]}  Ke7 {[%clk 0:01:12]} 28. Nde2 {[%clk 0:02:05]}  Nc4 {[%clk 0:01:12]} 29. Na2 {[%clk 0:01:49]}  Ne3 {[%clk 0:01:11]} 30. Rd3 {[%clk 0:01:44]}  Nc4 {[%clk 0:01:03]} 31. Nf4 {[%clk 0:01:38]}  Rc5 {[%clk 0:01:02]} 32. Rdd1 {[%clk 0:01:35]}  Rec8 {[%clk 0:01:00]} 33. Nc1 {[%clk 0:01:34]}  Nce5 {[%clk 0:00:53]} 34. c3 {[%clk 0:01:29]}  R5c7 {[%clk 0:00:53]} 35. Nb3 {[%clk 0:01:28]}  Rb8 {[%clk 0:00:49]} 36. Nd4 {[%clk 0:01:27]}  Bc8 {[%clk 0:00:50]} 37. g3 {[%clk 0:01:22]}  Bd7 {[%clk 0:00:49]} 38. Ng6+ {[%clk 0:01:22]}  Nxg6 {[%clk 0:00:47]} 39. hxg6 {[%clk 0:01:19]}  Ne5 {[%clk 0:00:48]} 40. f4 {[%clk 0:01:00]}  Nxg6 {[%clk 0:00:48]} 41. Bh3 {[%clk 0:01:01]}  Nf8 {[%clk 0:00:42]} 42. e5 {[%clk 0:00:58]}  dxe5 {[%clk 0:00:31]} 43. Rxe5 {[%clk 0:00:58]}  Kf6 {[%clk 0:00:32]} 44. Rde1 {[%clk 0:00:50]}  Rb6 {[%clk 0:00:32]} 45. g4 {[%clk 0:00:47]}  a5 {[%clk 0:00:28]} 46. g5+ {[%clk 0:00:45]}  Kf7 {[%clk 0:00:28]} 47. f5 {[%clk 0:00:38]}  exf5 {[%clk 0:00:24]} 48. Re7+ {[%clk 0:00:38]}  Kg6 {[%clk 0:00:22]} 49. gxh6 {[%clk 0:00:34]}  gxh6 {[%clk 0:00:22]} 50. Rg1+ {[%clk 0:00:25]}  Kf6 {[%clk 0:00:22]} 51. Rgg7 {[%clk 0:00:23]}  b4 {[%clk 0:00:09]} 52. Rgf7+ {[%clk 0:00:19]}  Kg5 {[%clk 0:00:09]} 53. axb4 {[%clk 0:00:17]}  axb4 {[%clk 0:00:10]} 54. Bxf5 {[%clk 0:00:16]}  bxc3 {[%clk 0:00:08]} 55. Rxf8 {[%clk 0:00:15]}  cxb2 {[%clk 0:00:07]} 56. Bc2 {[%clk 0:00:12]}  Ra7 {[%clk 0:00:07]} 57. Rg7+ {[%clk 0:00:09]}  Kh4 {[%clk 0:00:03]} 58. Rf4+ {[%clk 0:00:09]}  Kh3 {[%clk 0:00:02]} 59. Rf3+ {[%clk 0:00:08]}  Kh4 {[%clk 0:00:03]} 60. Rf4+ {[%clk 0:00:08]}  Kh3 {[%clk 0:00:03]} 61. Rf3+ {[%clk 0:00:06]}  Kh4 {[%clk 0:00:03]} 62. Rf4+ {[%clk 0:00:03]} 1/2-1/2


[Site "https://www.chess.com"]

[Event "Titled Tuesday Blitz August 09 Early 2022"]
[White "Azarov, Sergei"]
[Black "Piesik, Piotr"]
[WhiteFideId "13501470"]
[BlackFideId "1136194"]
[WhiteElo "2494"]
[BlackElo "2221"]
[Result "0-1"]
[Round "10"]
[TimeControl "180+1"]
[Date "2022.08.09"]
[WhiteClock "0:00:01"]
[BlackClock "0:00:19"]

1. e4 {[%clk 0:02:28]}  g6 {[%clk 0:02:59]} 2. d4 {[%clk 0:02:28]}  Bg7 {[%clk 0:02:59]} 3. Nc3 {[%clk 0:02:29]}  c6 {[%clk 0:02:59]} 4. Nf3 {[%clk 0:02:29]}  d6 {[%clk 0:03:00]} 5. Be3 {[%clk 0:02:29]}  Nf6 {[%clk 0:03:00]} 6. Qd2 {[%clk 0:02:27]}  O-O {[%clk 0:03:00]} 7. Bh6 {[%clk 0:02:25]}  Nbd7 {[%clk 0:02:59]} 8. Bxg7 {[%clk 0:02:24]}  Kxg7 {[%clk 0:03:00]} 9. O-O-O {[%clk 0:02:24]}  Qc7 {[%clk 0:02:59]} 10. Bd3 {[%clk 0:02:24]}  e5 {[%clk 0:02:58]} 11. h4 {[%clk 0:02:22]}  h5 {[%clk 0:02:57]} 12. Kb1 {[%clk 0:02:20]}  b5 {[%clk 0:02:56]} 13. Ne2 {[%clk 0:02:20]}  Re8 {[%clk 0:02:53]} 14. Ng3 {[%clk 0:02:19]}  Nf8 {[%clk 0:02:53]} 15. Rhe1 {[%clk 0:02:13]}  Bg4 {[%clk 0:02:52]} 16. c3 {[%clk 0:01:51]}  Ne6 {[%clk 0:02:47]} 17. Be2 {[%clk 0:01:16]}  Nf4 {[%clk 0:02:42]} 18. Ng5 {[%clk 0:01:15]}  Bxe2 {[%clk 0:02:40]} 19. Nxe2 {[%clk 0:01:14]}  Ne6 {[%clk 0:02:14]} 20. f4 {[%clk 0:01:13]}  exf4 {[%clk 0:02:09]} 21. Nxf4 {[%clk 0:01:05]}  Nxg5 {[%clk 0:02:09]} 22. hxg5 {[%clk 0:01:06]}  Nxe4 {[%clk 0:02:09]} 23. Qc2 {[%clk 0:00:50]}  d5 {[%clk 0:02:08]} 24. Rf1 {[%clk 0:00:51]}  Nxg5 {[%clk 0:01:53]} 25. Nd3 {[%clk 0:00:41]}  Re4 {[%clk 0:01:45]} 26. Ne5 {[%clk 0:00:37]}  Re8 {[%clk 0:01:24]} 27. Qf2 {[%clk 0:00:31]}  R8xe5 {[%clk 0:01:17]} 28. Qf6+ {[%clk 0:00:27]}  Kg8 {[%clk 0:01:16]} 29. dxe5 {[%clk 0:00:27]}  Qxe5 {[%clk 0:01:16]} 30. Qxc6 {[%clk 0:00:27]}  d4 {[%clk 0:01:01]} 31. cxd4 {[%clk 0:00:21]}  Rxd4 {[%clk 0:01:01]} 32. Rxd4 {[%clk 0:00:20]}  Qxd4 {[%clk 0:01:01]} 33. Qxb5 {[%clk 0:00:19]}  Kg7 {[%clk 0:00:53]} 34. Ka1 {[%clk 0:00:17]}  Ne4 {[%clk 0:00:45]} 35. Qb7 {[%clk 0:00:15]}  Qc4 {[%clk 0:00:42]} 36. Re1 {[%clk 0:00:10]}  Nc5 {[%clk 0:00:33]} 37. Qxa7 {[%clk 0:00:09]}  Nd3 {[%clk 0:00:26]} 38. Rd1 {[%clk 0:00:07]}  Nb4 {[%clk 0:00:21]} 39. Qf2 {[%clk 0:00:01]}  Qxa2# {[%clk 0:00:19]} 0-1


[Site "https://www.chess.com"]

[Event "Titled Tuesday Blitz August 09 Early 2022"]
[White "Baches Garcia, Guillermo"]
[Black "Legenia, Artem"]
[WhiteFideId "2209764"]
[BlackFideId "14136945"]
[WhiteElo "2486"]
[BlackElo "1936"]
[Result "1-0"]
[Round "10"]
[TimeControl "180+1"]
[Date "2022.08.09"]
[WhiteClock "0:00:19"]
[BlackClock "0:00:19"]

1. e4 {[%clk 0:03:00]}  e5 {[%clk 0:02:52]} 2. Nf3 {[%clk 0:03:00]}  d6 {[%clk 0:02:52]} 3. d4 {[%clk 0:03:00]}  Nd7 {[%clk 0:02:52]} 4. c4 {[%clk 0:02:59]}  Ngf6 {[%clk 0:02:52]} 5. Nc3 {[%clk 0:03:00]}  c6 {[%clk 0:02:51]} 6. Be2 {[%clk 0:03:00]}  Be7 {[%clk 0:02:52]} 7. O-O {[%clk 0:03:00]}  h6 {[%clk 0:02:52]} 8. Qc2 {[%clk 0:03:00]}  O-O {[%clk 0:02:52]} 9. Rd1 {[%clk 0:02:58]}  Qc7 {[%clk 0:02:52]} 10. Be3 {[%clk 0:02:56]}  a5 {[%clk 0:02:52]} 11. Rac1 {[%clk 0:02:56]}  Ng4 {[%clk 0:02:47]} 12. Bd2 {[%clk 0:02:56]}  Ngf6 {[%clk 0:02:48]} 13. h3 {[%clk 0:02:55]}  b6 {[%clk 0:02:30]} 14. Be3 {[%clk 0:02:51]}  Bb7 {[%clk 0:02:30]} 15. a3 {[%clk 0:02:46]}  Rac8 {[%clk 0:02:25]} 16. b4 {[%clk 0:02:37]}  axb4 {[%clk 0:02:23]} 17. axb4 {[%clk 0:02:38]}  exd4 {[%clk 0:02:18]} 18. Nxd4 {[%clk 0:02:37]}  Rfd8 {[%clk 0:02:06]} 19. Nf5 {[%clk 0:02:32]}  Bf8 {[%clk 0:02:06]} 20. Qb3 {[%clk 0:02:19]}  Ne5 {[%clk 0:01:44]} 21. f4 {[%clk 0:02:15]}  Ng6 {[%clk 0:01:44]} 22. Bf3 {[%clk 0:02:12]}  Re8 {[%clk 0:01:37]} 23. Re1 {[%clk 0:01:57]}  Qb8 {[%clk 0:01:28]} 24. Rcd1 {[%clk 0:01:52]}  c5 {[%clk 0:01:18]} 25. bxc5 {[%clk 0:01:29]}  bxc5 {[%clk 0:01:15]} 26. Rb1 {[%clk 0:01:26]}  Bxe4 {[%clk 0:01:06]} 27. Qxb8 {[%clk 0:01:16]}  Rxb8 {[%clk 0:01:05]} 28. Rxb8 {[%clk 0:01:16]}  Rxb8 {[%clk 0:00:47]} 29. Nxe4 {[%clk 0:01:11]}  Nxe4 {[%clk 0:00:46]} 30. Bxe4 {[%clk 0:01:11]}  Ne7 {[%clk 0:00:43]} 31. Nxe7+ {[%clk 0:01:01]}  Bxe7 {[%clk 0:00:43]} 32. Bd5 {[%clk 0:00:59]}  Bf6 {[%clk 0:00:43]} 33. Bf2 {[%clk 0:00:55]}  Kf8 {[%clk 0:00:43]} 34. Re2 {[%clk 0:00:46]}  Re8 {[%clk 0:00:35]} 35. Rxe8+ {[%clk 0:00:43]}  Kxe8 {[%clk 0:00:36]} 36. Kf1 {[%clk 0:00:44]}  Ba1 {[%clk 0:00:35]} 37. Ke2 {[%clk 0:00:44]}  Ke7 {[%clk 0:00:36]} 38. Kf3 {[%clk 0:00:44]}  Bb2 {[%clk 0:00:36]} 39. Bh4+ {[%clk 0:00:43]}  f6 {[%clk 0:00:35]} 40. Ke4 {[%clk 0:00:41]}  Bd4 {[%clk 0:00:35]} 41. Kf5 {[%clk 0:00:41]}  Be3 {[%clk 0:00:34]} 42. Bg3 {[%clk 0:00:29]}  g5 {[%clk 0:00:31]} 43. fxg5 {[%clk 0:00:28]}  hxg5 {[%clk 0:00:31]} 44. Be1 {[%clk 0:00:24]}  Bd4 {[%clk 0:00:29]} 45. g3 {[%clk 0:00:22]}  Kf8 {[%clk 0:00:24]} 46. h4 {[%clk 0:00:21]}  gxh4 {[%clk 0:00:23]} 47. gxh4 {[%clk 0:00:21]}  Be5 {[%clk 0:00:23]} 48. Kg6 {[%clk 0:00:20]}  Ke7 {[%clk 0:00:18]} 49. h5 {[%clk 0:00:20]}  f5 {[%clk 0:00:19]} 50. Kxf5 {[%clk 0:00:20]}  Bh8 {[%clk 0:00:19]} 51. Bh4+ {[%clk 0:00:19]}  Kd7 {[%clk 0:00:19]} 52. Bf6 {[%clk 0:00:19]} 1-0


[Site "https://www.chess.com"]

[Event "Titled Tuesday Blitz August 09 Early 2022"]
[White "Barbashin, Igor"]
[Black "Vargas, Mauricio"]
[WhiteFideId "4155718"]
[BlackFideId "4404572"]
[WhiteElo "2138"]
[BlackElo "2004"]
[Result "1-0"]
[Round "10"]
[TimeControl "180+1"]
[Date "2022.08.09"]
[WhiteClock "0:00:36"]
[BlackClock "0:00:02"]

1. d4 {[%clk 0:03:00]}  d5 {[%clk 0:02:57]} 2. c4 {[%clk 0:02:57]}  c6 {[%clk 0:02:57]} 3. e3 {[%clk 0:02:56]}  e6 {[%clk 0:02:47]} 4. Nc3 {[%clk 0:02:57]}  Nf6 {[%clk 0:02:45]} 5. Nf3 {[%clk 0:02:55]}  Nbd7 {[%clk 0:02:44]} 6. Bd3 {[%clk 0:02:54]}  Bd6 {[%clk 0:02:34]} 7. O-O {[%clk 0:02:53]}  O-O {[%clk 0:02:32]} 8. b3 {[%clk 0:02:51]}  b6 {[%clk 0:02:11]} 9. Bb2 {[%clk 0:02:49]}  Ba6 {[%clk 0:02:06]} 10. e4 {[%clk 0:02:35]}  dxe4 {[%clk 0:02:03]} 11. Nxe4 {[%clk 0:02:32]}  Bc7 {[%clk 0:02:02]} 12. Re1 {[%clk 0:02:10]}  Qb8 {[%clk 0:01:59]} 13. d5 {[%clk 0:01:59]}  cxd5 {[%clk 0:01:58]} 14. Nxf6+ {[%clk 0:01:56]}  Nxf6 {[%clk 0:01:56]} 15. Bxf6 {[%clk 0:01:51]}  gxf6 {[%clk 0:01:55]} 16. cxd5 {[%clk 0:01:51]}  Bxd3 {[%clk 0:01:54]} 17. Qxd3 {[%clk 0:01:51]}  Rd8 {[%clk 0:01:49]} 18. Qc3 {[%clk 0:01:47]}  Rxd5 {[%clk 0:01:33]} 19. Qxf6 {[%clk 0:01:46]}  Rf5 {[%clk 0:01:33]} 20. Qh4 {[%clk 0:01:41]}  Kh8 {[%clk 0:01:28]} 21. Rac1 {[%clk 0:01:34]}  Bd8 {[%clk 0:01:20]} 22. Qh6 {[%clk 0:01:22]}  Be7 {[%clk 0:01:11]} 23. Nd4 {[%clk 0:01:16]}  Rg5 {[%clk 0:01:01]} 24. Nc6 {[%clk 0:01:10]}  Qb7 {[%clk 0:00:55]} 25. Re4 {[%clk 0:01:01]}  Rg6 {[%clk 0:00:50]} 26. Qh5 {[%clk 0:00:57]}  Rag8 {[%clk 0:00:48]} 27. g3 {[%clk 0:00:52]}  Rg5 {[%clk 0:00:42]} 28. Qxf7 {[%clk 0:00:49]}  R5g7 {[%clk 0:00:40]} 29. Qxe6 {[%clk 0:00:47]}  Bc5 {[%clk 0:00:39]} 30. Nd4 {[%clk 0:00:43]}  Rd8 {[%clk 0:00:15]} 31. Nf5 {[%clk 0:00:41]}  Rg6 {[%clk 0:00:02]} 32. Qe5+ {[%clk 0:00:37]}  Kg8 {[%clk 0:00:02]} 33. Rce1 {[%clk 0:00:36]} 1-0


[Site "https://www.chess.com"]